[Event "Chess 2023"]
[Site "Chess.com"]
[Date "2023.05.30"]
[Round "1"]
[White "Caruana, Fabiano"]
[Black "Carlsen, Magnus"]
[Result "1-0"]
[WhiteElo "2764"]
[BlackElo "2853"]
[ECO "C11"]
[EventDate "2023.??.??"]
[Annotator "rafael"]
[PlyCount "69"]
[Beauty "8041118317575"]
[EventType "schev"]
[EventRounds "2"]
[EventCountry "NOR"]
[TimeControl "5400+30"]

1.e4 e6 {The French Defense is rarely played by Carlsen in classical games, although he had beaten Karjakin and Ivanchuk with it a long time ago.} 2.d4 d5 3.Nc3 Nf6 4.e5 Nfd7 5.f4 c5 6.Nf3 Nc6 7.Be3 a6 8.Ne2 {Caruana has played this before in a blitz game, so it hardly came as a surprise. It's also the first move of the engine I used.} ( 8.Qd2 {is by far the most popular move.} ) 8...Qb6 9.Qc1 ( 9.Rb1 {was played by Caruana in the mentioned game.} 9...Be7 10.c3 O-O {Caruana-Vachier Lagrave, Chess.com (blitz) 2021.} ) 9...Be7 10.c3 O-O 11.g3 ( 11.h4 {is a typical move in the French and it's my computer's favorite. The rook can join the game through the h3-square.} ) 11...f6 ( 11...a5 $1 {[%c_effect a5;square;a5;type;GreatFind;persistent;true] This move has been tested in correspondence chess and was tried by Nepomniachtchi.} 12.Qc2 ( 12.Bg2 cxd4 13.Nexd4 ( 13.cxd4 Qa6 $1 {[%c_effect a6;square;a6;type;GreatFind;persistent;true] The point of Black's play becomes clear. The queen becomes active and the knight can go to b4.} ) 13...Nc5 {with a playable position for Black.} ) 12...f6 $1 {[%c_effect f6;square;f6;type;GreatFind;persistent;true] with a complicated game.} ( 12...cxd4 $6 {[%c_effect d4;square;d4;type;Inaccuracy;persistent;true]} 13.Nexd4 {was better for White in So-Nepomniachtchi, FTX Crypto Cup 2021.} ) ) 12.Bg2 cxd4 13.cxd4 Qa5+ ( 13...fxe5 {is also possible:} 14.fxe5 Qb5 ( 14...Qa5+ 15.Bd2 $1 {[%c_effect d2;square;d2;type;GreatFind;persistent;true]} ( 15.Kf2 $6 {[%c_effect f2;square;f2;type;Inaccuracy;persistent;true] is bad due to a nice piece sacrifice:} 15...Ndxe5 16.dxe5 Nxe5 {with excellent compensation for the piece in Van Foreest-Werle, Netherlands 2017.} ) ) 15.Qd1 $5 {[%c_effect d1;square;d1;type;Interesting;persistent;true]} 15...Qxb2 16.O-O {with good compensation for the pawn in Raijmaekers-Terreaux, ICCF email 2020.} ) 14.Nc3 $1 {[%c_effect c3;square;c3;type;GreatFind;persistent;true] A new move.} ( 14.Bd2 Qd8 $2 {[%c_effect d8;square;d8;type;Mistake;persistent;true]} ( 14...Qb5 {is necessary.} ) 15.O-O {with advantage for White was played in Vallejo Pons-Danielsen, Porto Carras 2011.} ) 14...Nb6 {Carlsen prepares the development of the light-squared bishop.} ( 14...fxe5 {is not enough to solve the problems after the accurate} 15.dxe5 $1 {[%c_effect e5;square;e5;type;GreatFind;persistent;true] This is the best way to capture.} ( 15.fxe5 Nb6 {with a better version of the plan implemented in the game.} ) 15...Bc5 16.Qd2 Qb6 17.Bf2 $1 {[%c_effect f2;square;f2;type;GreatFind;persistent;true] with the advantage for White. This is the type of position that highlights the nightmares of the French Defense: problems with the dark squares and a bad bishop on c8.} ) 15.exf6 $1 {[%c_effect f6;square;f6;type;GreatFind;persistent;true] A capture that changes the pawn structure is always a difficult one to choose.} ( 15.b3 $6 {[%c_effect b3;square;b3;type;Inaccuracy;persistent;true] This is not good with the bishop in the a3-f8 diagonal.} 15...Ba3 $1 {[%c_effect a3;square;a3;type;GreatFind;persistent;true]} 16.Qd2 Na7 {Followed by Bd7-Rac8 with a good position.} ) ( 15.O-O {is also possible.} ) 15...Bxf6 ( 15...Rxf6 {is a possible alternative.} 16.O-O Bd7 17.Bf2 Rc8 {with a slightly better position for White.} ) 16.b3 {Now this move is possible.} 16...Bd7 17.O-O Rac8 18.Qd2 ( 18.Qe1 {is an interesting computer suggestion.} 18...Nxd4 19.Bxd4 Bxd4+ 20.Nxd4 Qxc3 21.Nxe6 {with advantage for White after the exchange of queens.} ) 18...Be7 ( 18...Nxd4 $2 {[%c_effect d4;square;d4;type;Mistake;persistent;true] This move doesn't work:} 19.Bxd4 Bxd4+ 20.Qxd4 Rxc3 ( 20...Qxc3 21.Qxb6 ) 21.b4 {winning a piece.} ) 19.Ne2 Qxd2 20.Bxd2 {White has a slightly better endgame. The backward e-pawn is always a concern for Black, but the position is not the end of the world.} 20...Rc7 {The plan is to double rooks on the c-file.} ( 20...Nb4 21.a4 $1 {[%c_effect a4;square;a4;type;GreatFind;persistent;true] Avoiding Bb5.} 21...Rc2 22.Bh3 {with advantage for White.} ) ( 20...Ba3 21.Bh3 Rfe8 {is also a little better for White.} ) 21.Rac1 Rfc8 22.f5 $1 {[%c_effect f5;square;f5;type;GreatFind;persistent;true] A very good move, seizing a tactical chance. The pawn cannot be captured because the c7-rook has no squares.} 22...Ba3 ( 22...exf5 $2 {[%c_effect f5;square;f5;type;Mistake;persistent;true]} 23.Bf4 ) 23.Rce1 Bb4 24.Bxb4 Nxb4 25.fxe6 Bxe6 26.Nf4 Bf5 27.Ne5 {A good and natural human move.} ( 27.Re5 {is the computer suggestion and is probably more accurate.} 27...g6 28.Ng5 h6 29.Nf3 {Black's kingside is weakened. Needless to say, no human plays like this.} ) 27...g6 $1 {[%c_effect g6;square;g6;type;GreatFind;persistent;true] Very good defense by Carlsen. The bishop is protected.} ( 27...Nc2 $2 {[%c_effect c2;square;c2;type;Mistake;persistent;true] is bad:} 28.Bxd5+ $1 {[%c_effect d5;square;d5;type;GreatFind;persistent;true]} ( 28.Nxd5 {gives some drawing chances after} 28...Nxe1 29.Nxc7 Nxg2 30.Rxf5 Rxc7 31.Kxg2 Nd5 ) 28...Nxd5 29.Nxd5 Nxe1 30.Rxf5 Nc2 ( 30...Rc1 $2 {[%c_effect c1;square;c1;type;Mistake;persistent;true]} 31.Ne7+ Kh8 32.Nf7# ) 31.Nxc7 Rxc7 32.d5 Ne3 33.Rf3 $1 {[%c_effect f3;square;f3;type;GreatFind;persistent;true]} 33...Nxd5 34.Rd3 {A study-like position. The knight cannot move.} 34...Rc5 35.b4 $1 {[%c_effect b4;square;b4;type;GreatFind;persistent;true]} 35...Rb5 ( 35...Nxb4 36.Rd8# ) 36.a4 $1 {[%c_effect a4;square;a4;type;GreatFind;persistent;true] winning the knight.} ) 28.g4 Be4 29.Bxe4 dxe4 30.a3 ( 30.Rxe4 Nxa2 {Black is ok.} ) 30...N4d5 ( 30...Nc2 $1 {[%c_effect c2;square;c2;type;GreatFind;persistent;true] is the right path to achieve a draw.} 31.Rxe4 Re7 $1 {[%c_effect e7;square;e7;type;GreatFind;persistent;true] Black is ready to play 32...Nxd4 and the game is close to a draw.} ) 31.Rxe4 Rc3 $2 {[%c_effect c3;square;c3;type;Mistake;persistent;true] A very high-level game is suddenly decided after this mistake.} ( 31...Nxf4 {offers Black good drawing chances after} 32.Rexf4 Nd5 33.R4f3 Rc3 ) 32.Nd7 $3 {[%c_effect d7;square;d7;type;Brilliant;persistent;true] A fantastic move that poses unsolvable problems for Black.} 32...Rxb3 $6 {[%c_effect b3;square;b3;type;Inaccuracy;persistent;true] This loses on the spot, but the situation was already very difficult.} ( 32...Nxd7 $2 {[%c_effect d7;square;d7;type;Mistake;persistent;true] loses to} 33.Nxd5 ) ( 32...Nxf4 33.Nf6+ $1 {[%c_effect f6;square;f6;type;GreatFind;persistent;true]} ( 33.Nxb6 $2 {[%c_effect b6;square;b6;type;Mistake;persistent;true]} 33...Nh3+ 34.Kg2 Rd8 {with a probable draw.} ) 33...Kg7 34.Rexf4 {with a very difficult endgame for Black.} ) ( 32...Rc1 {Maybe this is the best chance, but White has a winning position with a pawn advantage.} ) 33.Nxd5 Nxd5 34.Re5 $1 {[%c_effect e5;square;e5;type;GreatFind;persistent;true]} 34...Nc3 ( 34...Ne3 35.Nf6+ Kf7 ( 35...Kg7 36.Re7+ Kh6 37.Rxh7+ Kg5 38.h4# ) 36.Rxe3 $1 {[%c_effect e3;square;e3;type;GreatFind;persistent;true] The only winning move.} 36...Rxe3 37.Nd5+ {White wins a piece.} ) 35.Nf6+ ( 35.Nf6+ Kf7 {White has many ways to win. One possibility is:} 36.Nxh7+ Kg7 37.Re7+ Kg8 38.Nf6+ Kf8 39.Rfe1 {with mating threats and a decisive d-pawn that is ready to march.} ) 1-0

[Event "Chess 2023"]
[Site "Chess.com"]
[Date "2023.05.31"]
[Round "3"]
[White "Tari, Aryan"]
[Black "Abdusattorov, Nodirbek"]
[Result "0-1"]
[WhiteElo "2642"]
[BlackElo "2731"]
[ECO "B51"]
[EventDate "2023.??.??"]
[Annotator "rafael"]
[PlyCount "92"]
[Beauty "7218497857114"]
[EventType "schev"]
[EventRounds "2"]
[EventCountry "NOR"]
[TimeControl "5400+30"]

1.e4 c5 2.Nf3 Nc6 3.Bb5 d6 {Abdusattorov has been playing this variation against the Rossolimo lately.} 4.O-O Bd7 5.Re1 Nf6 6.h3 $5 {[%c_effect h3;square;h3;type;Interesting;persistent;true] An interesting move to prevent Black's bishop from going to g4.} ( 6.c3 a6 7.Bf1 Bg4 {This is the main line.} ) 6...a6 7.Bf1 Rg8 {A bold and risky move that shows how far Abdusattorov is willing to go to play for a win with the black pieces. 7...e6, 7...g6, or 7...e5 are the normal development moves. Black, however, wants to play g5 and start an attack on the kingside.} ( 7...g6 8.c3 {Black has no good way to counter White's plan of controlling the center with d4.} ) ( 7...e5 8.c3 Be7 9.d4 {with a pawn structure that resembles the Ruy Lopez opening.} ) ( 7...e6 8.c3 Be7 9.d4 cxd4 10.cxd4 d5 11.e5 Ne4 12.Nbd2 {with a slight advantage for White.} ) ( 7...g5 {This has been tried by some very strong players. A recent example followed:} 8.d4 $1 {[%c_effect d4;square;d4;type;GreatFind;persistent;true]} 8...g4 9.d5 gxf3 10.dxc6 Bxc6 11.Qxf3 {with an advantage for White in Carlsen-Nakamura, Airthing Masters 2023.} ) 8.d3 {Avoiding g5. This is a new move.} ( 8.d4 cxd4 9.Nxd4 g5 10.g3 {was played in Saydaliev-Asgari, Konya 2022.} ) 8...h6 {Preparing g5 again, not in the most subtle way.} 9.b4 $1 {[%c_effect b4;square;b4;type;GreatFind;persistent;true] The first choice of the computer.} ( 9.e5 $5 {[%c_effect e5;square;e5;type;Interesting;persistent;true]} 9...dxe5 10.Nbd2 {This is the human way of playing, with the idea of Nc4 and then capturing on e5.} ) 9...cxb4 ( 9...Nxb4 10.d4 $1 {[%c_effect d4;square;d4;type;GreatFind;persistent;true]} 10...cxd4 11.c3 $1 {[%c_effect c3;square;c3;type;GreatFind;persistent;true]} 11...dxc3 12.Nxc3 {White has excellent compensation for the sacrificed pawns with an advantage in development and a safer king.} ) 10.a3 $1 {[%c_effect a3;square;a3;type;GreatFind;persistent;true]} 10...b3 $1 {[%c_effect b3;square;b3;type;GreatFind;persistent;true] Accurate play by both sides. Considering all these moves are recommended by the machine and that they didn't take long before making all these difficult decisions, it's possible that they were still in preparation.} 11.c4 $1 {[%c_effect c4;square;c4;type;GreatFind;persistent;true] Going for the center.} ( 11.cxb3 g5 $1 {[%c_effect g5;square;g5;type;GreatFind;persistent;true] with the desired counterplay.} ) 11...g5 $1 {[%c_effect g5;square;g5;type;GreatFind;persistent;true]} 12.Qxb3 g4 13.hxg4 Nxg4 14.d4 {The position is very sharp, and it will become chaotic in the next moves.} 14...Qa5 $6 {[%c_effect a5;square;a5;type;Inaccuracy;persistent;true] I suppose Abdusattorov's plan was to bring the queen to h5 and then deliver checkmate somehow, but it doesn't work.} ( 14...e5 $1 {[%c_effect e5;square;e5;type;GreatFind;persistent;true] is better:} 15.d5 Nd4 16.Nxd4 exd4 {with a sharp position that can go either way.} ) 15.Nc3 Bg7 ( 15...Qh5 $2 {[%c_effect h5;square;h5;type;Mistake;persistent;true] The attack is not as strong as it looks.} 16.Bf4 ( 16.Ne2 {is also good.} ) 16...e5 17.Bg3 {Everything is defended and Black's position will collapse.} ) 16.e5 $1 {[%c_effect e5;square;e5;type;GreatFind;persistent;true]} 16...dxe5 ( 16...Nxd4 $5 {[%c_effect d4;square;d4;type;Interesting;persistent;true] While watching the game live, I thought Abdusattorov would try this move, whose consequences were not very clear to me. But everything became easier to understand with the click of a button.} 17.Nxd4 Bxe5 18.Rxe5 $1 {[%c_effect e5;square;e5;type;GreatFind;persistent;true] The only move.} 18...dxe5 ( 18...Qxe5 19.Nf3 {is also better for White.} ) 19.Nc2 {An unbalanced position that is better for White because Black's king is vulnerable.} ) 17.Bd2 $1 {[%c_effect d2;square;d2;type;GreatFind;persistent;true]} 17...Qd8 ( 17...exd4 18.Nd5 Qd8 {Here, White has many moves to develop the initiative. My favorite is} 19.Bf4 ) 18.d5 Nd4 19.Nxd4 exd4 20.Ne4 Be5 $1 {[%c_effect e5;square;e5;type;GreatFind;persistent;true] A good try.} 21.f4 Bh8 {At least now the knight is secure on g4, and White can't place a bishop on f4. The computer is very optimistic about White's position, but in practice, things are not so clear.} 22.c5 $6 {[%c_effect c5;square;c5;type;Inaccuracy;persistent;true]} ( 22.Nd6+ $2 {[%c_effect d6;square;d6;type;Mistake;persistent;true] is bad:} 22...Kf8 23.Nxb7 Qc8 24.c5 d3 $1 {[%c_effect d3;square;d3;type;GreatFind;persistent;true] The bishop enters the game with decisive effect. This is going to be a recurring theme in the next moves.} ) ( 22.Qxb7 $6 {[%c_effect b7;square;b7;type;Inaccuracy;persistent;true] is too optimistic.} 22...d3 ) ( 22.Rab1 $1 {[%c_effect b1;square;b1;type;GreatFind;persistent;true] is the best move, getting the rook into the game.} 22...Kf8 23.Be2 {Another good prophylactic move, preparing to exchange the dangerous knight. White is better.} ) 22...Kf8 23.Rac1 $6 {[%c_effect c1;square;c1;type;Inaccuracy;persistent;true]} ( 23.Rab1 {The rook is better placed on b1, as becomes clear in the following line:} 23...d3 $6 {[%c_effect d3;square;d3;type;Inaccuracy;persistent;true]} 24.Qxd3 Bb5 25.Rxb5 $1 {[%c_effect b5;square;b5;type;GreatFind;persistent;true]} 25...axb5 26.Bb4 {With monster compensation for the exchange.} ) 23...d3 $1 {[%c_effect d3;square;d3;type;GreatFind;persistent;true] Now this move is good.} 24.Bc3 ( 24.Qxd3 Bb5 $1 {[%c_effect b5;square;b5;type;GreatFind;persistent;true]} ) 24...e6 $2 {[%c_effect e6;square;e6;type;Mistake;persistent;true] It's nearly impossible to play well in such an irrational position.} ( 24...f5 $1 {[%c_effect f5;square;f5;type;GreatFind;persistent;true] is a good try. Play can continue:} 25.Nd2 Qc7 $1 {[%c_effect c7;square;c7;type;GreatFind;persistent;true]} 26.Bxh8 Qxf4 $1 {[%c_effect f4;square;f4;type;GreatFind;persistent;true]} 27.Nf3 d2 $1 {[%c_effect d2;square;d2;type;GreatFind;persistent;true]} 28.Bb2 dxc1=Q 29.Bxc1 Qc7 {with great complications, but at least Black is up an exchange and a pawn.} ) 25.c6 $1 {[%c_effect c6;square;c6;type;GreatFind;persistent;true]} 25...Bxc3 26.Qxc3 Qh4 $2 {[%c_effect h4;square;h4;type;Mistake;persistent;true] This is a blunder.} ( 26...bxc6 {is necessary, although Black has to play a sad and probably losing endgame after} 27.dxc6 Qb6+ 28.Qc5+ Qxc5+ 29.Rxc5 Bc8 30.Bxd3 Ke7 ) 27.Qc5+ $2 {[%c_effect c5;square;c5;type;Mistake;persistent;true] Another blunder in return.} ( 27.Qb4+ {wins with a nice geometric motif:} 27...Kg7 28.Qb2+ $1 {[%c_effect b2;square;b2;type;GreatFind;persistent;true]} 28...Kh7 29.g3 {The queen protects the h2-square and it's all over.} ) 27...Kg7 28.Bxd3 Qh2+ 29.Kf1 Qxf4+ 30.Ke2 exd5 31.Rf1 $2 {[%c_effect f1;square;f1;type;Mistake;persistent;true] After this, White is losing. It was still possible to defend with} ( 31.Qd4+ $1 {[%c_effect d4;square;d4;type;GreatFind;persistent;true] For instance:} 31...Ne5 32.cxd7 dxe4 33.Qxe4 {with good drawing chances.} ) 31...Qe5 32.cxd7 Rad8 $19 33.Qc3 dxe4 34.Bxe4 Rxd7 {Black is two pawns up, and surely Tari knew that he missed good chances in the game. He went down without a fight.} 35.Rf4 Qxc3 36.Rxc3 Ne5 37.Rg3+ Ng6 38.Rfg4 Re8 39.Kf2 Re6 40.Bd3 a5 41.a4 b6 {I have the impression that Abdusattorov's endgame technique is excellent. I can recall several games he won with impeccable play, most notably the queen endgame against Carlsen in the Tata Steel tournament this year.} 42.Kg1 Rd5 43.Bc4 Rd1+ 44.Kh2 Ree1 45.Rf3 h5 $1 {[%c_effect h5;square;h5;type;GreatFind;persistent;true]} 46.Rg5 h4 ( 46...h4 {A sudden mating attack decides the game.} 47.Kh3 Rh1+ 48.Kg4 Rd4+ {Bye bye, bishop.} ) 0-1